[Event "*** MasterClass Titled Tuesday Blitz"]
[Site "Chess.com"]
[Date "2017.10.03"]
[Round "2"]
[White "ZapataCharlesS"]
[Black "MITerryble"]
[Result "0-1"]
[WhiteElo "2556"]
[BlackElo "2638"]
[TimeControl "180+2"]
[EndTime "13:26:01 PDT"]
[Termination "MITerryble won by resignation"]

1. d4 {[%clk 0:02:39.5]} 1... e6 {[%clk 0:02:39.4]} 2. Nf3 {[%clk 0:02:41.4]}
2... Nf6 {[%clk 0:02:40.2]} 3. Bf4 {[%clk 0:02:41.1]} 3... Bd6 {[%clk
0:02:40.3]} 4. Bxd6 {[%clk 0:02:39.2]} 4... cxd6 {[%clk 0:02:42.2]} 5. c4 {[%clk
0:02:37.9]} 5... O-O {[%clk 0:02:43]} 6. Nc3 {[%clk 0:02:37.2]} 6... Qc7 {[%clk
0:02:27.7]} 7. e3 {[%clk 0:02:39.1]} 7... a6 {[%clk 0:02:27]} 8. Be2 {[%clk
0:02:39.3]} 8... b6 {[%clk 0:02:27.8]} 9. O-O {[%clk 0:02:39.2]} 9... Bb7 {[%clk
0:02:29.2]} 10. b3 {[%clk 0:02:34.2]} 10... d5 {[%clk 0:02:29.9]} 11. Rc1 {[%clk
0:02:35.5]} 11... dxc4 {[%clk 0:02:31.1]} 12. Bxc4 {[%clk 0:02:32]} 12... d6
{[%clk 0:02:25.6]} 13. Bd3 {[%clk 0:02:26.6]} 13... Qe7 {[%clk 0:02:22.7]} 14.
e4 {[%clk 0:02:25.3]} 14... Nc6 {[%clk 0:02:20.5]} 15. Re1 {[%clk 0:02:18.3]}
15... Rfd8 {[%clk 0:02:17.7]} 16. Qd2 {[%clk 0:02:08.5]} 16... b5 {[%clk
0:02:03.8]} 17. Ne2 {[%clk 0:02:00.7]} 17... Rac8 {[%clk 0:01:59.4]} 18. Ng3
{[%clk 0:01:55.5]} 18... Nd7 {[%clk 0:01:57]} 19. Rc2 {[%clk 0:01:47.5]} 19...
Nf8 {[%clk 0:01:50.1]} 20. Rec1 {[%clk 0:01:47.5]} 20... Na7 {[%clk 0:01:38.4]}
21. Qa5 {[%clk 0:01:40.8]} 21... Rxc2 {[%clk 0:01:37.4]} 22. Rxc2 {[%clk
0:01:40.8]} 22... Rc8 {[%clk 0:01:39.3]} 23. Rxc8 {[%clk 0:01:38.7]} 23... Nxc8
{[%clk 0:01:41.2]} 24. a4 {[%clk 0:01:36.4]} 24... bxa4 {[%clk 0:01:23.2]} 25.
bxa4 {[%clk 0:01:36.7]} 25... d5 {[%clk 0:01:24.6]} 26. e5 {[%clk 0:01:33.8]}
26... Qa3 {[%clk 0:01:24.3]} 27. Bxa6 {[%clk 0:01:29.7]} 27... Qc1+ {[%clk
0:01:16.4]} 28. Nf1 {[%clk 0:01:25.7]} 28... Bxa6 {[%clk 0:01:16.1]} 29. Qxa6
{[%clk 0:01:27.6]} 29... Nd7 {[%clk 0:01:16.7]} 30. a5 {[%clk 0:01:23.4]} 30...
Qc7 {[%clk 0:01:16]} 31. Qb5 {[%clk 0:01:23.2]} 31... Na7 {[%clk 0:01:12.9]} 32.
Qa4 {[%clk 0:01:22.4]} 32... Nc6 {[%clk 0:01:11.8]} 33. a6 {[%clk 0:01:21.9]}
33... Ndb8 {[%clk 0:01:10.3]} 34. h4 {[%clk 0:01:12.8]} 34... Qa7 {[%clk
0:01:11.2]} 35. N1d2 {[%clk 0:01:08.4]} 35... Qxa6 {[%clk 0:01:12]} 36. Qxa6
{[%clk 0:01:08.3]} 36... Nxa6 {[%clk 0:01:13.9]} 37. Nb3 {[%clk 0:01:09.9]}
37... h6 {[%clk 0:01:13.7]} 38. Kf1 {[%clk 0:01:05.6]} 38... Kf8 {[%clk
0:01:14.8]} 39. Ke2 {[%clk 0:01:06.9]} 39... Ke7 {[%clk 0:01:16.7]} 40. Ke3
{[%clk 0:01:05.9]} 40... Kd7 {[%clk 0:01:17.5]} 41. g4 {[%clk 0:01:04.6]} 41...
Kc7 {[%clk 0:01:18.2]} 42. h5 {[%clk 0:01:05.4]} 42... Kd7 {[%clk 0:01:17.9]}
43. Ne1 {[%clk 0:01:01.1]} 43... Nab4 {[%clk 0:01:14.1]} 44. Nc5+ {[%clk
0:00:57]} 44... Ke7 {[%clk 0:01:15.4]} 45. f4 {[%clk 0:00:57.2]} 45... Na5
{[%clk 0:01:14.3]} 46. Ncd3 {[%clk 0:00:49.1]} 46... Nc4+ {[%clk 0:01:12.4]} 47.
Ke2 {[%clk 0:00:48.2]} 47... Nc6 {[%clk 0:01:14.3]} 48. Nf3 {[%clk 0:00:48.5]}
48... Na3 {[%clk 0:01:14.2]} 49. Nc5 {[%clk 0:00:46.8]} 49... Nb5 {[%clk
0:01:15.3]} 50. Ke3 {[%clk 0:00:47.2]} 50... Nb4 {[%clk 0:01:13.9]} 51. g5
{[%clk 0:00:46.1]} 51... Na3 {[%clk 0:01:10.9]} 52. gxh6 {[%clk 0:00:44.5]}
52... gxh6 {[%clk 0:01:11.4]} 53. f5 {[%clk 0:00:45.8]} 53... Nac2+ {[%clk
0:01:05.3]} 54. Kf4 {[%clk 0:00:40.8]} 54... exf5 {[%clk 0:01:06.4]} 55. Kxf5
{[%clk 0:00:38.4]} 55... Nc6 {[%clk 0:01:07.4]} 56. Nb3 {[%clk 0:00:37.7]} 56...
Ne3+ {[%clk 0:01:06.7]} 57. Kf4 {[%clk 0:00:37.8]} 57... Nc2 {[%clk 0:01:07.3]}
58. Kf5 {[%clk 0:00:38.8]} 58... N2b4 {[%clk 0:01:03.1]} 59. Kf4 {[%clk
0:00:37.1]} 59... Ke6 {[%clk 0:00:52.3]} 60. Nh2 {[%clk 0:00:34.5]} 60... Nc2
{[%clk 0:00:50.9]} 61. Nc5+ {[%clk 0:00:31.9]} 61... Ke7 {[%clk 0:00:51.5]} 62.
Ng4 {[%clk 0:00:33.8]} 62... N2xd4 {[%clk 0:00:49.5]} 63. Nxh6 {[%clk
0:00:34.3]} 63... Ne2+ {[%clk 0:00:46.7]} 64. Ke3 {[%clk 0:00:32.4]} 64... Ng3
{[%clk 0:00:47.7]} 65. Ng8+ {[%clk 0:00:23.5]} 65... Kf8 {[%clk 0:00:48.9]} 66.
Nf6 {[%clk 0:00:25.4]} 66... Kg7 {[%clk 0:00:45.3]} 67. Kf4 {[%clk 0:00:24.6]}
67... Ne2+ {[%clk 0:00:46.2]} 68. Kf5 {[%clk 0:00:21.4]} 68... Ned4+ {[%clk
0:00:44.3]} 69. Kg5 {[%clk 0:00:22.7]} 69... Nf3+ {[%clk 0:00:45.2]} 70. Kf4
{[%clk 0:00:24.1]} 70... Nfxe5 {[%clk 0:00:46.1]} 71. Ncd7 {[%clk 0:00:24.2]}
71... Nxd7 {[%clk 0:00:38.5]} 72. Nxd7 {[%clk 0:00:26.1]} 72... Kh6 {[%clk
0:00:39.7]} 73. Kf5 {[%clk 0:00:25.6]} 73... d4 {[%clk 0:00:37.3]} 74. Nc5
{[%clk 0:00:25.1]} 74... Kxh5 {[%clk 0:00:36.9]} 75. Kf6 {[%clk 0:00:26.3]}
75... Kg4 {[%clk 0:00:38.1]} 76. Kxf7 {[%clk 0:00:27.9]} 76... Kf5 {[%clk
0:00:39]} 77. Nd3 {[%clk 0:00:26.5]} 77... Ne5+ {[%clk 0:00:39.5]} 0-1

[Event "*** MasterClass Titled Tuesday Blitz"]
[Site "Chess.com"]
[Date "2017.10.03"]
[Round "2"]
[White "BillCoe"]
[Black "stregachess"]
[Result "0-1"]
[WhiteElo "1958"]
[BlackElo "2038"]
[TimeControl "180+2"]
[EndTime "13:28:03 PDT"]
[Termination "stregachess won on time"]

1. e4 {[%clk 0:03:01.9]} 1... c5 {[%clk 0:03:00.1]} 2. Nf3 {[%clk 0:03:02.6]}
2... g6 {[%clk 0:03:00.9]} 3. d4 {[%clk 0:03:03.9]} 3... cxd4 {[%clk 0:03:01]}
4. Nxd4 {[%clk 0:03:05.3]} 4... Bg7 {[%clk 0:03:02.2]} 5. c4 {[%clk 0:03:06.2]}
5... Nc6 {[%clk 0:03:01.7]} 6. Be3 {[%clk 0:03:06]} 6... Nf6 {[%clk 0:03:02.7]}
7. Nc3 {[%clk 0:03:06]} 7... Ng4 {[%clk 0:02:56.9]} 8. Nxc6 {[%clk 0:02:55.3]}
8... Nxe3 {[%clk 0:02:57]} 9. Nxd8 {[%clk 0:02:46.1]} 9... Nxd1 {[%clk
0:02:57.8]} 10. Rxd1 {[%clk 0:02:42.1]} 10... Bxc3+ {[%clk 0:02:57.7]} 11. bxc3
{[%clk 0:02:41.9]} 11... Kxd8 {[%clk 0:02:59.6]} 12. c5 {[%clk 0:02:34.6]} 12...
Kc7 {[%clk 0:03:00.5]} 13. Bb5 {[%clk 0:02:32.5]} 13... Rd8 {[%clk 0:02:59.6]}
14. Rd4 {[%clk 0:02:31.1]} 14... b6 {[%clk 0:03:00.4]} 15. cxb6+ {[%clk
0:02:30]} 15... axb6 {[%clk 0:03:01.4]} 16. a4 {[%clk 0:02:29.3]} 16... d6
{[%clk 0:02:56.1]} 17. Ke2 {[%clk 0:02:25.2]} 17... Be6 {[%clk 0:02:55.4]} 18.
f3 {[%clk 0:02:23.3]} 18... Rac8 {[%clk 0:02:53.7]} 19. Ra1 {[%clk 0:02:17.2]}
19... Kb7 {[%clk 0:02:53.2]} 20. c4 {[%clk 0:02:12.1]} 20... Ra8 {[%clk
0:02:48]} 21. Kd3 {[%clk 0:02:09.5]} 21... f6 {[%clk 0:02:44.8]} 22. Kc3 {[%clk
0:02:09.2]} 22... Rdc8 {[%clk 0:02:42.6]} 23. Kb4 {[%clk 0:02:09.3]} 23... Rc5
{[%clk 0:02:42.7]} 24. g4 {[%clk 0:01:57.9]} 24... h6 {[%clk 0:02:41.7]} 25. h4
{[%clk 0:01:56.1]} 25... Rh8 {[%clk 0:02:36.1]} 26. a5 {[%clk 0:01:47.6]} 26...
bxa5+ {[%clk 0:02:31.1]} 27. Rxa5 {[%clk 0:01:47]} 27... Ra8 {[%clk 0:02:15.1]}
28. Rxa8 {[%clk 0:01:46.7]} 28... Kxa8 {[%clk 0:02:15.9]} 29. Rd1 {[%clk
0:01:47.2]} 29... Kb7 {[%clk 0:02:16.1]} 30. Ra1 {[%clk 0:01:47.5]} 30... h5
{[%clk 0:02:07.7]} 31. gxh5 {[%clk 0:01:29.5]} 31... Rxh5 {[%clk 0:02:05.9]} 32.
Be8 {[%clk 0:01:19.3]} 32... Rxh4 {[%clk 0:01:55.2]} 33. Bxg6 {[%clk 0:01:19.4]}
33... Rh2 {[%clk 0:01:50.8]} 34. Ra5 {[%clk 0:01:11.1]} 34... Rb2+ {[%clk
0:01:48]} 35. Kc3 {[%clk 0:01:09.8]} 35... Rf2 {[%clk 0:01:38]} 36. Bh5 {[%clk
0:01:08.5]} 36... Rf1 {[%clk 0:01:38.6]} 37. Rb5+ {[%clk 0:01:04.1]} 37... Kc7
{[%clk 0:01:38.6]} 38. Ra5 {[%clk 0:01:03.2]} 38... Rc1+ {[%clk 0:01:29.5]} 39.
Kd2 {[%clk 0:01:03.8]} 39... Rxc4 {[%clk 0:01:29]} 40. Ra7+ {[%clk 0:01:04.8]}
40... Kd8 {[%clk 0:01:29.9]} 41. Ra8+ {[%clk 0:01:03.7]} 41... Rc8 {[%clk
0:01:26.8]} 42. Ra7 {[%clk 0:01:04.1]} 42... Bd7 {[%clk 0:01:26.2]} 43. Ke3
{[%clk 0:01:02.2]} 43... Rb8 {[%clk 0:01:26.4]} 44. f4 {[%clk 0:00:58.5]} 44...
Rb3+ {[%clk 0:01:26.6]} 45. Kd4 {[%clk 0:00:58.5]} 45... Rb4+ {[%clk 0:01:26.5]}
46. Ke3 {[%clk 0:00:58.2]} 46... Bc6 {[%clk 0:01:21.1]} 47. Bg6 {[%clk
0:00:57.4]} 47... Bb7 {[%clk 0:01:16.7]} 48. Ra1 {[%clk 0:00:56]} 48... Rb3+
{[%clk 0:01:15.7]} 49. Kd4 {[%clk 0:00:55.5]} 49... Rf3 {[%clk 0:01:12.2]} 50.
f5 {[%clk 0:00:43.2]} 50... Rb3 {[%clk 0:01:10.4]} 51. Ra4 {[%clk 0:00:43.1]}
51... Bc6 {[%clk 0:01:05.9]} 52. Rc4 {[%clk 0:00:40]} 52... Rb6 {[%clk
0:00:59.5]} 53. Bf7 {[%clk 0:00:38.5]} 53... Ra6 {[%clk 0:00:30.3]} 54. Be6
{[%clk 0:00:18.4]} 54... Ra4 {[%clk 0:00:28.2]} 55. Rxa4 {[%clk 0:00:19.2]}
55... Bxa4 {[%clk 0:00:29.2]} 56. Kc4 {[%clk 0:00:18.6]} 56... Kc7 {[%clk
0:00:30.2]} 57. Kd4 {[%clk 0:00:17.7]} 57... Bd1 {[%clk 0:00:30.6]} 58. Bd5
{[%clk 0:00:15.7]} 58... Kb6 {[%clk 0:00:30.9]} 59. Be6 {[%clk 0:00:17]} 59...
Bf3 {[%clk 0:00:30.6]} 60. Bd5 {[%clk 0:00:17.8]} 60... Bh5 {[%clk 0:00:29.3]}
61. Be6 {[%clk 0:00:19]} 61... Be8 {[%clk 0:00:29.1]} 62. Kd5 {[%clk 0:00:19.5]}
62... Bc6+ {[%clk 0:00:27.4]} 63. Kd4 {[%clk 0:00:20.5]} 63... Kb5 {[%clk
0:00:28]} 64. Ba2 {[%clk 0:00:19.7]} 64... Kb4 {[%clk 0:00:28.9]} 65. Bf7 {[%clk
0:00:20.1]} 65... Ba4 {[%clk 0:00:29.3]} 66. Be6 {[%clk 0:00:21]} 66... Bc6
{[%clk 0:00:27.8]} 67. Bf7 {[%clk 0:00:21.4]} 67... Ba4 {[%clk 0:00:22.2]} 68.
Be6 {[%clk 0:00:22.6]} 68... Be8 {[%clk 0:00:20.6]} 69. Bc8 {[%clk 0:00:22.8]}
69... Kb5 {[%clk 0:00:21.2]} 70. Be6 {[%clk 0:00:23.2]} 70... Kb6 {[%clk
0:00:22.3]} 71. Bb3 {[%clk 0:00:23]} 71... Kc7 {[%clk 0:00:23.2]} 72. Be6 {[%clk
0:00:23.1]} 72... Bd7 {[%clk 0:00:24.1]} 73. Bd5 {[%clk 0:00:23.5]} 73... Kd8
{[%clk 0:00:23.6]} 74. Bf7 {[%clk 0:00:23.7]} 74... Bc6 {[%clk 0:00:23.3]} 75.
Bg6 {[%clk 0:00:22.2]} 75... Bb7 {[%clk 0:00:21.9]} 76. Bf7 {[%clk 0:00:22.8]}
76... Kd7 {[%clk 0:00:22.6]} 77. Bg6 {[%clk 0:00:20.2]} 77... e6 {[%clk
0:00:23.6]} 78. fxe6+ {[%clk 0:00:21]} 78... Kxe6 {[%clk 0:00:24.8]} 79. Bf5+
{[%clk 0:00:22.1]} 79... Ke7 {[%clk 0:00:26]} 80. Bg6 {[%clk 0:00:23]} 80... Bc6
{[%clk 0:00:27.1]} 81. Bf5 {[%clk 0:00:23.9]} 81... Bd7 {[%clk 0:00:28]} 82. Bg6
{[%clk 0:00:24.2]} 82... Be6 {[%clk 0:00:28.9]} 83. Bh5 {[%clk 0:00:21.4]} 83...
Kf8 {[%clk 0:00:30]} 84. Bd1 {[%clk 0:00:21.2]} 84... Kg7 {[%clk 0:00:31.1]} 85.
Bh5 {[%clk 0:00:21.6]} 85... Kh6 {[%clk 0:00:32.1]} 86. Be8 {[%clk 0:00:22.8]}
86... Kg5 {[%clk 0:00:33.2]} 87. Bc6 {[%clk 0:00:23]} 87... Kf4 {[%clk
0:00:33.9]} 88. Bb5 {[%clk 0:00:23.6]} 88... Bf7 {[%clk 0:00:33.3]} 89. Bd7
{[%clk 0:00:24]} 89... Bh5 {[%clk 0:00:33.7]} 90. Bc6 {[%clk 0:00:24.4]} 90...
Bf3 {[%clk 0:00:34.6]} 91. Bd5 {[%clk 0:00:24.1]} 91... Bg2 {[%clk 0:00:34.5]}
92. Kd3 {[%clk 0:00:11.1]} 92... Ke5 {[%clk 0:00:34.6]} 93. Ke3 {[%clk
0:00:09.4]} 93... Bh1 {[%clk 0:00:34.8]} 94. Kd3 {[%clk 0:00:06.5]} 94... f5
{[%clk 0:00:29.6]} 95. Ke3 {[%clk 0:00:03.7]} 95... fxe4 {[%clk 0:00:30.5]} 96.
Bb7 {[%clk 0:00:04.1]} 96... Bf3 {[%clk 0:00:31.2]} 0-1

[Event "*** MasterClass Titled Tuesday Blitz"]
[Site "Chess.com"]
[Date "2017.10.03"]
[Round "3"]
[White "Induwara_IM"]
[Black "DrVelja"]
[Result "0-1"]
[WhiteElo "2480"]
[BlackElo "2511"]
[TimeControl "180+2"]
[EndTime "13:32:27 PDT"]
[Termination "DrVelja won by resignation"]

1. d4 {[%clk 0:01:07]} 1... Nf6 {[%clk 0:02:59.6]} 2. c4 {[%clk 0:01:07.6]} 2...
g6 {[%clk 0:03:00.8]} 3. Nc3 {[%clk 0:01:08.9]} 3... Bg7 {[%clk 0:03:02.4]} 4.
e4 {[%clk 0:01:10.1]} 4... d6 {[%clk 0:03:04]} 5. Bd3 {[%clk 0:01:11.3]} 5...
O-O {[%clk 0:03:04]} 6. Nge2 {[%clk 0:01:12.6]} 6... Nbd7 {[%clk 0:03:04.1]} 7.
O-O {[%clk 0:01:13.2]} 7... c5 {[%clk 0:03:05.5]} 8. d5 {[%clk 0:01:14.5]} 8...
Ne5 {[%clk 0:03:07]} 9. f4 {[%clk 0:01:15.6]} 9... Nxd3 {[%clk 0:03:08.3]} 10.
Qxd3 {[%clk 0:01:17.5]} 10... a6 {[%clk 0:03:09.6]} 11. h3 {[%clk 0:01:16.3]}
11... b5 {[%clk 0:03:10.4]} 12. e5 {[%clk 0:01:12]} 12... Nd7 {[%clk 0:03:03.2]}
13. exd6 {[%clk 0:01:09]} 13... exd6 {[%clk 0:03:03.8]} 14. Bd2 {[%clk
0:01:01.1]} 14... bxc4 {[%clk 0:02:59.7]} 15. Qxc4 {[%clk 0:01:03]} 15... a5
{[%clk 0:03:00.5]} 16. f5 {[%clk 0:00:54.4]} 16... Ne5 {[%clk 0:02:53.5]} 17.
Qe4 {[%clk 0:00:55.1]} 17... Bxf5 {[%clk 0:02:48.8]} 18. Rxf5 {[%clk 0:00:55.4]}
18... gxf5 {[%clk 0:02:50.7]} 19. Qxf5 {[%clk 0:00:56.6]} 19... Qf6 {[%clk
0:02:43.8]} 20. Qe4 {[%clk 0:00:56.9]} 20... Qg6 {[%clk 0:02:42.9]} 21. Qh4
{[%clk 0:00:53.4]} 21... Nf3+ {[%clk 0:02:43.5]} 0-1

[Event "*** MasterClass Titled Tuesday Blitz"]
[Site "Chess.com"]
[Date "2017.10.03"]
[Round "3"]
[White "pastouche06"]
[Black "TheFlaminGM"]
[Result "0-1"]
[WhiteElo "2289"]
[BlackElo "2579"]
[TimeControl "180+2"]
[EndTime "13:32:43 PDT"]
[Termination "TheFlaminGM won by resignation"]

1. e4 {[%clk 0:03:01.9]} 1... g6 {[%clk 0:03:01.4]} 2. d4 {[%clk 0:03:02.1]}
2... Bg7 {[%clk 0:03:02.5]} 3. Nc3 {[%clk 0:03:03.5]} 3... a6 {[%clk 0:03:04]}
4. Be3 {[%clk 0:03:04]} 4... b5 {[%clk 0:03:05.1]} 5. f3 {[%clk 0:03:02.2]} 5...
d6 {[%clk 0:03:06.4]} 6. Qd2 {[%clk 0:03:03.6]} 6... Bb7 {[%clk 0:03:06.3]} 7.
h4 {[%clk 0:03:04.9]} 7... h5 {[%clk 0:03:06.5]} 8. Nh3 {[%clk 0:03:05.3]} 8...
Nd7 {[%clk 0:03:08.1]} 9. Ng5 {[%clk 0:03:03.8]} 9... Rc8 {[%clk 0:03:09.7]} 10.
f4 {[%clk 0:02:53.2]} 10... c5 {[%clk 0:03:02.6]} 11. O-O-O {[%clk 0:02:52.8]}
11... Qa5 {[%clk 0:02:58]} 12. Kb1 {[%clk 0:02:53]} 12... b4 {[%clk 0:02:53]}
13. Nd5 {[%clk 0:02:52.1]} 13... e6 {[%clk 0:02:38.5]} 14. dxc5 {[%clk 0:02:48]}
14... exd5 {[%clk 0:02:38.1]} 15. cxd6 {[%clk 0:02:43.7]} 15... dxe4 {[%clk
0:02:31]} 16. Bd4 {[%clk 0:02:44.5]} 16... Ngf6 {[%clk 0:02:31.5]} 17. a3 {[%clk
0:02:39.1]} 17... O-O {[%clk 0:02:23.8]} 18. axb4 {[%clk 0:02:39.1]} 18... Qf5
{[%clk 0:02:24.7]} 19. Be2 {[%clk 0:02:36.1]} 19... Rc6 {[%clk 0:02:17.4]} 20.
g4 {[%clk 0:02:36.9]} 20... hxg4 {[%clk 0:02:13.6]} 21. h5 {[%clk 0:02:37.9]}
21... gxh5 {[%clk 0:02:12.8]} 22. Rdf1 {[%clk 0:02:31]} 22... Rfc8 {[%clk
0:02:10.7]} 23. b3 {[%clk 0:02:30.7]} 23... Rxd6 {[%clk 0:01:51.8]} 24. Bc4
{[%clk 0:02:25.1]} 24... Bd5 {[%clk 0:01:44.4]} 25. Bxd5 {[%clk 0:02:15.7]}
25... Rxd5 {[%clk 0:01:41.3]} 26. c4 {[%clk 0:01:57.9]} 26... e3+ {[%clk
0:01:41.5]} 0-1

[Event "*** MasterClass Titled Tuesday Blitz"]
[Site "Chess.com"]
[Date "2017.10.03"]
[Round "3"]
[White "MITerryble"]
[Black "Diwi89"]
[Result "0-1"]
[WhiteElo "2628"]
[BlackElo "2538"]
[TimeControl "180+2"]
[EndTime "13:33:00 PDT"]
[Termination "Diwi89 won by resignation"]

1. d4 {[%clk 0:03:01.9]} 1... Nf6 {[%clk 0:03:00.7]} 2. Nf3 {[%clk 0:03:03]}
2... e6 {[%clk 0:02:59.3]} 3. c4 {[%clk 0:03:03.6]} 3... b6 {[%clk 0:02:58.8]}
4. g3 {[%clk 0:03:02.8]} 4... Ba6 {[%clk 0:02:58.2]} 5. Qa4 {[%clk 0:03:03]}
5... Bb7 {[%clk 0:02:55.7]} 6. Bg2 {[%clk 0:03:03.1]} 6... c5 {[%clk 0:02:56.6]}
7. dxc5 {[%clk 0:03:04.1]} 7... Bxc5 {[%clk 0:02:53.9]} 8. O-O {[%clk
0:03:03.1]} 8... O-O {[%clk 0:02:54.8]} 9. Nc3 {[%clk 0:03:03.8]} 9... Be7
{[%clk 0:02:52.4]} 10. Rd1 {[%clk 0:03:02.6]} 10... Na6 {[%clk 0:02:52.5]} 11.
Bf4 {[%clk 0:03:03.1]} 11... Nc5 {[%clk 0:02:53.2]} 12. Qc2 {[%clk 0:03:04]}
12... Qc8 {[%clk 0:02:52.7]} 13. Nb5 {[%clk 0:03:03.3]} 13... Nce4 {[%clk
0:02:50.9]} 14. Nc7 {[%clk 0:02:58.8]} 14... Nxf2 {[%clk 0:02:49.6]} 15. Kxf2
{[%clk 0:02:36.6]} 15... Ng4+ {[%clk 0:02:50.5]} 16. Ke1 {[%clk 0:02:34]} 16...
e5 {[%clk 0:02:41.6]} 17. Bh3 {[%clk 0:02:15]} 17... Qxc7 {[%clk 0:02:38.9]} 18.
Bxg4 {[%clk 0:02:15]} 18... exf4 {[%clk 0:02:36.6]} 19. Rxd7 {[%clk 0:02:16.6]}
19... Bb4+ {[%clk 0:02:37.6]} 20. Kf1 {[%clk 0:02:18]} 20... Qb8 {[%clk
0:02:39.2]} 21. a3 {[%clk 0:01:28.7]} 21... Bc5 {[%clk 0:02:36.9]} 22. Ng5
{[%clk 0:01:29.7]} 22... g6 {[%clk 0:02:35.5]} 23. Nxf7 {[%clk 0:01:30.8]} 23...
fxg3 {[%clk 0:02:36.3]} 24. e4 {[%clk 0:01:15.4]} 24... Qf4+ {[%clk 0:02:30.6]}
25. Ke1 {[%clk 0:01:12.2]} 25... Bf2+ {[%clk 0:02:16.5]} 26. Ke2 {[%clk
0:01:11.6]} 26... Qxg4+ {[%clk 0:02:14.4]} 0-1

[Event "*** MasterClass Titled Tuesday Blitz"]
[Site "Chess.com"]
[Date "2017.10.03"]
[Round "3"]
[White "Blitzstream"]
[Black "OparinGrigoriy"]
[Result "1/2-1/2"]
[WhiteElo "2500"]
[BlackElo "2654"]
[TimeControl "180+2"]
[EndTime "13:33:25 PDT"]
[Termination "Game drawn by repetition"]

1. g4 {[%clk 0:03:01.9]} 1... c6 {[%clk 0:02:59.1]} 2. c4 {[%clk 0:02:58.9]}
2... g6 {[%clk 0:02:58.8]} 3. h4 {[%clk 0:02:59]} 3... h5 {[%clk 0:02:59.3]} 4.
g5 {[%clk 0:02:56.2]} 4... Bg7 {[%clk 0:02:59.9]} 5. Nc3 {[%clk 0:02:56.5]} 5...
d5 {[%clk 0:02:57.7]} 6. cxd5 {[%clk 0:02:57]} 6... cxd5 {[%clk 0:02:59.6]} 7.
d4 {[%clk 0:02:57.7]} 7... Nc6 {[%clk 0:03:00.3]} 8. Bg2 {[%clk 0:02:19.7]} 8...
e6 {[%clk 0:03:00.6]} 9. Nf3 {[%clk 0:02:08]} 9... Nge7 {[%clk 0:03:01]} 10. Bf4
{[%clk 0:02:08.8]} 10... O-O {[%clk 0:02:59.8]} 11. e3 {[%clk 0:02:08.6]} 11...
b6 {[%clk 0:02:57.6]} 12. Nb5 {[%clk 0:02:02.2]} 12... a6 {[%clk 0:02:54.4]} 13.
Nd6 {[%clk 0:01:47.8]} 13... Bd7 {[%clk 0:02:53.7]} 14. Nb7 {[%clk 0:01:38.2]}
14... Qc8 {[%clk 0:02:46.3]} 15. Nd6 {[%clk 0:01:38.5]} 15... Qd8 {[%clk
0:00:39.9]} 16. Nb7 {[%clk 0:01:39.1]} 16... Qc8 {[%clk 0:00:41.1]} 17. Nd6
{[%clk 0:01:39.9]} 17... Qd8 {[%clk 0:00:42.1]} 18. Nb7 {[%clk 0:01:41.1]}
1/2-1/2

[Event "*** MasterClass Titled Tuesday Blitz"]
[Site "Chess.com"]
[Date "2017.10.03"]
[Round "3"]
[White "SantoBlue"]
[Black "Muracle"]
[Result "1-0"]
[WhiteElo "2556"]
[BlackElo "2472"]
[TimeControl "180+2"]
[EndTime "13:33:34 PDT"]
[Termination "SantoBlue won by resignation"]

1. Nf3 {[%clk 0:02:58.2]} 1... Nf6 {[%clk 0:03:00.5]} 2. c4 {[%clk 0:02:55]}
2... g6 {[%clk 0:03:00.9]} 3. Nc3 {[%clk 0:02:55.6]} 3... d5 {[%clk 0:03:02.3]}
4. cxd5 {[%clk 0:02:56.2]} 4... Nxd5 {[%clk 0:03:04.2]} 5. e4 {[%clk 0:02:57.8]}
5... Nxc3 {[%clk 0:03:02.7]} 6. bxc3 {[%clk 0:02:58.6]} 6... Bg7 {[%clk
0:03:03.3]} 7. d4 {[%clk 0:03:00.5]} 7... c5 {[%clk 0:03:03.9]} 8. Bb5+ {[%clk
0:03:00.8]} 8... Bd7 {[%clk 0:03:03.4]} 9. a4 {[%clk 0:03:00.6]} 9... O-O {[%clk
0:03:02.4]} 10. O-O {[%clk 0:03:01.4]} 10... a6 {[%clk 0:03:01]} 11. Bxd7 {[%clk
0:03:02]} 11... Nxd7 {[%clk 0:03:01.5]} 12. a5 {[%clk 0:03:01.9]} 12... cxd4
{[%clk 0:02:59.9]} 13. cxd4 {[%clk 0:03:02.7]} 13... Nc5 {[%clk 0:03:00.3]} 14.
Re1 {[%clk 0:02:56.7]} 14... Rc8 {[%clk 0:02:59.1]} 15. Rb1 {[%clk 0:02:54.5]}
15... Ne6 {[%clk 0:02:43]} 16. Rxb7 {[%clk 0:02:53.9]} 16... Nxd4 {[%clk
0:02:39]} 17. Nxd4 {[%clk 0:02:53.9]} 17... Bxd4 {[%clk 0:02:38.6]} 18. Bh6
{[%clk 0:02:41.5]} 18... Re8 {[%clk 0:02:37]} 19. h3 {[%clk 0:02:40.4]} 19...
Qxa5 {[%clk 0:02:25.7]} 20. Qxd4 {[%clk 0:02:01.3]} 20... Qxe1+ {[%clk
0:02:24.7]} 21. Kh2 {[%clk 0:02:02.8]} 21... e5 {[%clk 0:02:26]} 22. Qa7 {[%clk
0:02:00.4]} 22... Ra8 {[%clk 0:02:16.4]} 23. Qb6 {[%clk 0:02:01.3]} 23... Qxf2
{[%clk 0:00:43.6]} 24. Qxf2 {[%clk 0:02:00]} 1-0

[Event "*** MasterClass Titled Tuesday Blitz"]
[Site "Chess.com"]
[Date "2017.10.03"]
[Round "3"]
[White "TregubovP"]
[Black "VladimirBelous"]
[Result "0-1"]
[WhiteElo "2512"]
[BlackElo "2639"]
[TimeControl "180+2"]
[EndTime "13:33:53 PDT"]
[Termination "VladimirBelous won by resignation"]

1. d4 {[%clk 0:03:01.9]} 1... Nf6 {[%clk 0:03:00.3]} 2. c4 {[%clk 0:03:03.3]}
2... g6 {[%clk 0:03:01.8]} 3. Nc3 {[%clk 0:03:01.8]} 3... Bg7 {[%clk 0:03:02.3]}
4. e4 {[%clk 0:03:01.9]} 4... d6 {[%clk 0:03:03.5]} 5. Bg5 {[%clk 0:03:03.1]}
5... Nbd7 {[%clk 0:02:59.2]} 6. f4 {[%clk 0:02:56.7]} 6... h6 {[%clk 0:02:50.5]}
7. Bh4 {[%clk 0:02:57.1]} 7... c5 {[%clk 0:02:51.3]} 8. d5 {[%clk 0:02:55.4]}
8... Qa5 {[%clk 0:02:51.5]} 9. Bd3 {[%clk 0:02:47.1]} 9... g5 {[%clk 0:02:47]}
10. fxg5 {[%clk 0:02:41.4]} 10... hxg5 {[%clk 0:02:48.9]} 11. Bxg5 {[%clk
0:02:42.5]} 11... Ne5 {[%clk 0:02:45.4]} 12. Nf3 {[%clk 0:02:33.2]} 12... Bg4
{[%clk 0:02:36.6]} 13. h3 {[%clk 0:02:00.3]} 13... Nfd7 {[%clk 0:02:13.5]} 14.
Be2 {[%clk 0:01:59.1]} 14... Bxf3 {[%clk 0:01:59.9]} 15. gxf3 {[%clk 0:01:57.9]}
15... Nxc4 {[%clk 0:02:00.2]} 16. Qb3 {[%clk 0:01:21.6]} 16... b5 {[%clk
0:01:41.8]} 17. Bxc4 {[%clk 0:01:19.8]} 17... bxc4 {[%clk 0:01:42.9]} 18. Qxc4
{[%clk 0:01:21]} 18... Rb8 {[%clk 0:01:43.7]} 19. O-O-O {[%clk 0:01:13.5]} 19...
Rb4 {[%clk 0:01:37.3]} 20. Qe2 {[%clk 0:01:09.1]} 20... Bxc3 {[%clk 0:01:35.4]}
21. bxc3 {[%clk 0:00:59.4]} 21... Qa3+ {[%clk 0:01:35.4]} 22. Kd2 {[%clk
0:00:59.3]} 22... Rb2+ {[%clk 0:01:36.8]} 23. Ke3 {[%clk 0:00:58.2]} 23... Rxe2+
{[%clk 0:01:34]} 24. Kxe2 {[%clk 0:00:59.4]} 24... Qxc3 {[%clk 0:01:31.6]} 25.
Rd3 {[%clk 0:00:56.9]} 25... Qc4 {[%clk 0:01:31.1]} 0-1